bitfinex-derivatives/quotes_ETHF0:USTF0_20260125
["timestamp","ask_amount","ask_price","bid_price","bid_amount"]
[1769304432625,1.987,2956.3,2954.9,0.14711152]
[1769304432824,4.02142291,2956.2,2954.9,0.14711152]
[1769304433024,1.987,2956.3,2954.9,0.14711152]
[1769304433225,4.02139346,2956.2,2954.9,0.14711152]
[1769304433523,1.987,2956.3,2954.9,0.14711152]
[1769304434927,4.02163468,2956.2,2954.9,0.14711152]
[1769304435225,1.987,2956.3,2954.9,0.14711152]
[1769304435524,4.02196234,2956.2,2954.9,0.14711152]
[1769304435727,1.987,2956.3,2954.9,0.14711152]
[1769304435923,4.02192832,2956.2,2954.9,0.14711152]
[1769304436113,1.987,2956.3,2954.9,0.14711152]
[1769304436319,4.02200512,2956.2,2954.9,0.14711152]
[1769304436525,1.987,2956.3,2954.9,0.14711152]
[1769304436824,4.02222537,2956.2,2954.9,0.14711152]
[1769304437025,1.987,2956.3,2954.9,0.14711152]
[1769304437218,4.02228178,2956.2,2954.9,0.14711152]
[1769304437417,1.987,2956.3,2954.9,0.14711152]
[1769304437616,4.02255965,2956.2,2954.9,0.14711152]
[1769304437817,1.987,2956.3,2954.9,0.14711152]
[1769304438013,4.02256995,2956.2,2954.9,0.14711152]
[1769304438218,1.987,2956.3,2954.9,0.14711152]
[1769304438417,4.02299301,2956.2,2954.9,0.14711152]
[1769304438619,1.987,2956.3,2954.9,0.14711152]
[1769304438930,4.02299305,2956.2,2954.9,0.14711152]
[1769304439120,1.987,2956.3,2954.9,0.14711152]
[1769304439427,4.02306891,2956.2,2954.9,0.14711152]
[1769304439722,1.987,2956.3,2954.9,0.14711152]
[1769304440024,4.02350996,2956.2,2954.9,0.14711152]
[1769304440224,1.987,2956.3,2954.9,0.14711152]
[1769304440426,4.02412959,2956.2,2954.9,0.14711152]
[1769304440625,1.987,2956.3,2954.9,0.14711152]
[1769304440823,4.02413512,2956.2,2954.9,0.14711152]
[1769304441023,1.987,2956.3,2954.9,0.14711152]
[1769304441327,4.02421987,2956.2,2954.9,0.14711152]
[1769304441526,1.987,2956.3,2954.9,0.14711152]
[1769304441527,4.02421987,2956.1,2954.9,0.14711152]
[1769304441828,1.987,2956.3,2954.9,0.14711152]
[1769304442126,4.02481555,2956.2,2954.9,0.14711152]
[1769304442322,4.02481555,2956.1,2954.9,0.14711152]
[1769304442522,1.987,2956.3,2954.9,0.14711152]
[1769304442723,4.02545401,2956.2,2954.9,0.14711152]
[1769304442923,4.02545401,2956.1,2955.2,0.77863543]
[1769304443127,1.987,2956.3,2955.2,0.77863543]
[1769304443328,4.0255257,2956.2,2955.2,0.77863543]
[1769304443629,4.0255257,2956.1,2955.2,0.77863543]
[1769304443825,4.0255257,2956.0,2955.2,0.77863543]
[1769304444019,1.987,2956.3,2955.2,0.77863543]
[1769304444221,4.02639303,2956.2,2955.2,0.77863543]
[1769304444421,4.02639303,2956.1,2955.2,0.77863543]
[1769304444625,4.02639303,2956.0,2955.2,0.77863543]
[1769304444921,2.76563543,2956.5,2955.2,0.77863543]
[1769304445122,4.0270448,2956.4,2955.2,0.77863543]
[1769304445321,4.0270448,2956.3,2955.2,0.77863543]
[1769304445529,4.0270448,2956.2,2955.2,0.77863543]
[1769304445725,4.0270448,2956.1,2955.2,0.77863543]
[1769304445926,2.12,2956.5,2955.4,0.77863543]
[1769304446136,4.02797354,2956.4,2955.4,0.77863543]
[1769304446328,4.02797354,2956.3,2955.4,0.77863543]
[1769304446526,4.02797354,2956.2,2955.4,0.77863543]
[1769304446722,4.02797354,2956.1,2955.4,0.77863543]
[1769304446926,1.987,2956.5,2955.4,0.77863543]
[1769304447129,4.02849937,2956.4,2955.4,0.77863543]
[1769304447323,4.02849937,2956.3,2955.4,0.77863543]
[1769304447533,4.02849937,2956.2,2955.4,0.77863543]
[1769304447731,4.02849937,2956.1,2955.4,0.77863543]
[1769304447932,1.987,2956.5,2955.4,0.77863543]
[1769304448133,4.0290776,2956.4,2955.4,0.77863543]
[1769304448334,4.0290776,2956.3,2955.4,0.77863543]
[1769304448530,4.0290776,2956.2,2955.4,0.77863543]
[1769304448732,4.0290776,2956.1,2955.4,0.77863543]
[1769304448932,1.987,2956.5,2955.4,0.77863543]
[1769304449129,4.02880128,2956.4,2955.4,0.77863543]
[1769304449334,4.02880128,2956.3,2955.4,0.77863543]
[1769304449534,4.02880128,2956.2,2955.4,0.77863543]
[1769304449737,4.02880128,2956.1,2955.4,0.77863543]
[1769304450035,1.987,2956.5,2955.4,0.77863543]
[1769304450236,4.02840235,2956.4,2955.4,0.77863543]
[1769304450435,4.02840235,2956.3,2955.4,0.77863543]
[1769304450635,4.02840235,2956.2,2955.4,0.77863543]
[1769304450838,4.02840235,2956.1,2955.4,0.77863543]
[1769304451038,1.987,2956.5,2955.4,0.77863543]
[1769304451237,4.0282565,2956.4,2955.4,0.77863543]
[1769304451438,4.0282565,2956.3,2955.4,0.77863543]
[1769304451637,4.0282565,2956.2,2955.4,0.77863543]
[1769304451934,4.0282565,2956.1,2955.4,0.77863543]
[1769304452138,1.987,2956.5,2955.4,0.77863543]
[1769304452333,4.0282897,2956.4,2955.4,0.77863543]
[1769304452526,4.0282897,2956.3,2955.4,0.77863543]
[1769304452733,4.0282897,2956.2,2955.4,0.77863543]
[1769304452935,4.0282897,2956.1,2955.4,0.77863543]
[1769304453133,1.987,2956.5,2955.4,0.77863543]
[1769304453335,4.02804104,2956.4,2955.4,0.77863543]
[1769304453535,4.02804104,2956.3,2955.4,0.77863543]
[1769304453735,1.987,2956.5,2955.4,0.77863543]
[1769304454038,4.02809675,2956.4,2955.4,0.77863543]
[1769304454238,4.02809675,2956.3,2955.4,0.77863543]
[1769304454438,1.987,2956.5,2955.4,0.77863543]
[1769304454638,4.0277548,2956.4,2955.4,0.77863543]
[1769304454841,4.0277548,2956.3,2955.4,0.77863543]
[1769304455138,1.987,2956.5,2955.4,0.77863543]
[1769304455336,4.02743747,2956.4,2955.4,0.77863543]
[1769304455535,4.02743747,2956.3,2955.4,0.77863543]
[1769304455740,1.987,2956.5,2955.4,0.77863543]
[1769304455937,4.02747736,2956.4,2955.4,0.77863543]
[1769304456142,4.02747736,2956.3,2955.4,0.77863543]
[1769304456342,1.987,2956.5,2955.4,0.77863543]
[1769304456533,4.02729102,2956.4,2955.4,0.77863543]
[1769304456741,4.02729102,2956.3,2955.4,0.77863543]
[1769304456942,1.987,2956.5,2955.4,0.77863543]
[1769304457241,4.02727492,2956.4,2955.4,0.77863543]
[1769304457542,1.987,2956.5,2955.4,0.77863543]
[1769304457743,4.02709147,2956.4,2955.4,0.77863543]
[1769304457937,1.987,2956.5,2955.4,0.77863543]
[1769304458238,4.02707283,2956.4,2955.4,0.77863543]
[1769304458434,1.987,2956.5,2955.4,0.77863543]
[1769304458634,4.02688295,2956.4,2955.4,0.77863543]
[1769304458840,1.987,2956.5,2955.4,0.77863543]
[1769304459040,4.02693643,2956.4,2955.4,0.77863543]
[1769304459243,1.987,2956.5,2955.4,0.77863543]
[1769304459443,4.02682437,2956.4,2955.4,0.77863543]
[1769304459637,1.987,2956.5,2955.4,0.77863543]
[1769304459836,4.02682333,2956.4,2955.4,0.77863543]
[1769304460039,2.13422786,2956.5,2955.4,0.77863543]
[1769304460245,4.02670811,2956.4,2955.4,0.77863543]
[1769304460445,2.13422786,2956.5,2955.4,0.77863543]
[1769304460646,4.0267096,2956.4,2955.4,0.77863543]
[1769304460846,2.13422786,2956.5,2955.4,0.77863543]
[1769304461047,4.02670907,2956.4,2955.4,0.77863543]
[1769304461245,2.13422786,2956.5,2955.4,0.77863543]
[1769304461246,4.02670907,2956.3,2955.4,0.77863543]
[1769304461446,2.13422786,2956.5,2955.4,0.77863543]
[1769304461648,4.02665326,2956.4,2955.4,0.77863543]
[1769304461851,4.02665326,2956.3,2955.4,0.77863543]
[1769304462040,2.13422786,2956.5,2955.4,0.77863543]
[1769304462237,4.02661854,2956.4,2955.4,0.77863543]
[1769304462436,4.02661854,2956.3,2955.4,0.77863543]
[1769304462648,2.13422786,2956.5,2955.4,0.77863543]
[1769304462841,4.026593,2956.4,2955.4,0.77863543]
[1769304463043,2.13422786,2956.5,2955.4,0.77863543]
[1769304463238,4.02654987,2956.4,2955.4,0.77863543]
[1769304463444,4.17377773,2956.3,2955.0,0.16946]
[1769304463751,4.02654987,2956.2,2955.1,0.77863543]
[1769304463952,0.14722786,2956.3,2955.1,0.77863543]
[1769304464154,4.02616061,2956.2,2955.1,0.77863543]
[1769304464350,0.14722786,2956.3,2955.1,0.77863543]
[1769304464550,4.02621994,2956.2,2955.1,0.77863543]
[1769304464751,0.14722786,2956.3,2955.1,0.77863543]
[1769304464949,4.02620741,2956.2,2955.1,0.77863543]
[1769304465251,0.14722786,2956.3,2955.1,0.77863543]
[1769304465451,4.02622982,2956.2,2955.1,0.77863543]
[1769304465647,0.14722786,2956.3,2955.1,0.77863543]
[1769304465945,4.02626048,2956.2,2955.1,0.77863543]
[1769304466150,0.14722786,2956.3,2955.1,0.77863543]
[1769304466349,4.02633139,2956.2,2955.1,0.77863543]
[1769304466647,0.14722786,2956.3,2955.1,0.77863543]
[1769304466944,4.02627114,2956.2,2955.1,0.77863543]
[1769304467144,0.14722786,2956.3,2955.1,0.77863543]
[1769304467345,4.02636024,2956.2,2955.1,0.77863543]
[1769304467549,4.02636024,2956.1,2955.1,0.77863543]
[1769304467752,0.14722786,2956.3,2955.1,0.77863543]
[1769304467953,4.02640063,2956.2,2955.1,0.77863543]
[1769304468252,4.02640063,2956.1,2955.1,0.77863543]
[1769304468453,0.14722786,2956.3,2955.1,0.77863543]
[1769304468640,4.026411,2956.2,2955.1,0.77863543]
[1769304468942,4.026411,2956.1,2955.1,0.77863543]
[1769304469144,0.14722786,2956.3,2955.1,0.77863543]
[1769304469345,4.02644399,2956.2,2955.1,0.77863543]
[1769304469550,4.02644399,2956.1,2955.1,0.77863543]
[1769304469750,0.14722786,2956.3,2955.1,0.77863543]
[1769304469952,4.02636968,2956.2,2955.1,0.77863543]
[1769304470151,0.14722786,2956.3,2955.1,0.77863543]
[1769304470360,4.02645392,2956.2,2955.1,0.77863543]
[1769304470654,0.14722786,2956.3,2955.1,0.77863543]
[1769304470855,4.02641707,2956.2,2955.1,0.77863543]
[1769304471159,4.02648701,2956.1,2955.1,0.77863543]
[1769304471454,0.14722786,2956.3,2955.1,0.77863543]
[1769304471654,4.02651199,2956.2,2955.1,0.77863543]
[1769304471858,0.14722786,2956.3,2955.1,0.77863543]
[1769304472059,4.02650946,2956.2,2955.1,0.77863543]
[1769304472259,0.14722786,2956.3,2955.1,0.77863543]
[1769304472558,4.0265769,2956.2,2955.1,0.77863543]
[1769304472759,0.14722786,2956.3,2955.1,0.77863543]
[1769304473059,4.0267098,2956.2,2955.1,0.77863543]
[1769304473361,0.14722786,2956.3,2955.1,0.77863543]
[1769304473663,4.02679761,2956.2,2955.1,0.77863543]
[1769304473857,4.02679761,2956.1,2955.1,0.77863543]
[1769304474159,0.14722786,2956.3,2955.1,0.77863543]
[1769304474362,4.02678282,2956.2,2955.1,0.77863543]
[1769304474554,4.02678282,2956.1,2955.1,0.77863543]
[1769304474854,0.14722786,2956.3,2955.1,0.77863543]
[1769304475054,4.02664234,2956.2,2955.1,0.77863543]
[1769304475354,0.77863543,2956.5,2955.1,0.77863543]
[1769304475651,6.0135848,2956.4,2955.3,0.77863543]
[1769304475958,4.0265848,2956.3,2955.3,0.77863543]
[1769304476255,4.0265848,2956.2,2955.3,0.77863543]
[1769304476455,1.987,2956.4,2955.3,0.77863543]
[1769304476651,4.02651173,2956.3,2955.3,0.77863543]
[1769304476851,4.02651173,2956.2,2955.3,0.77863543]
[1769304477050,1.987,2956.4,2955.3,0.77863543]
[1769304477256,4.02656529,2956.3,2955.3,0.77863543]
[1769304477456,4.02656529,2956.2,2955.3,0.77863543]
[1769304477656,1.987,2956.4,2955.3,0.77863543]
[1769304477858,4.02649991,2956.3,2955.3,0.77863543]
[1769304478058,4.02649991,2956.2,2955.3,0.77863543]
[1769304478260,1.987,2956.4,2955.3,0.77863543]
[1769304478462,4.02659084,2956.3,2955.3,0.77863543]
[1769304478761,4.02659084,2956.2,2955.3,0.77863543]
[1769304478963,1.987,2956.4,2955.3,0.77863543]
[1769304479155,4.02659132,2956.3,2955.3,0.77863543]
[1769304479455,4.02659132,2956.2,2955.3,0.77863543]
[1769304479655,1.987,2956.4,2955.3,0.77863543]
[1769304479855,4.02660239,2956.3,2955.3,0.77863543]
[1769304480152,4.02660239,2956.2,2955.3,0.77863543]
[1769304480350,1.987,2956.4,2955.3,0.77863543]
[1769304480653,4.02658257,2956.3,2955.3,0.77863543]
[1769304480853,4.02658257,2956.2,2955.3,0.77863543]
[1769304481062,1.987,2956.4,2955.3,0.77863543]
[1769304481261,4.02651106,2956.3,2955.3,0.77863543]
[1769304481459,4.02651106,2956.2,2955.3,0.77863543]
[1769304481660,1.987,2956.4,2955.3,0.77863543]
[1769304481861,4.02651168,2956.3,2955.3,0.77863543]
[1769304482060,4.02651168,2956.2,2955.3,0.77863543]
[1769304482361,1.987,2956.4,2955.3,0.77863543]
[1769304482560,4.02650011,2956.3,2955.3,0.77863543]
[1769304482761,4.02650011,2956.2,2955.3,0.77863543]
[1769304482960,1.987,2956.4,2955.3,0.77863543]
[1769304483164,4.02649863,2956.3,2955.3,0.77863543]
[1769304483360,2.142,2956.4,2955.5,0.77863543]
[1769304483663,4.02675929,2956.3,2955.5,0.77863543]
[1769304483862,2.142,2956.4,2955.5,0.77863543]
[1769304484063,4.02676169,2956.3,2955.5,0.77863543]
[1769304484258,2.142,2956.4,2955.5,0.77863543]
[1769304484457,4.02685479,2956.3,2955.5,0.77863543]
[1769304484664,2.142,2956.4,2955.5,0.77863543]
[1769304487267,1.987,2956.5,2955.5,0.77863543]
[1769304487466,4.02691759,2956.4,2955.5,0.77863543]
[1769304487765,1.987,2956.5,2955.5,0.77863543]
[1769304487968,4.02691821,2956.4,2955.5,0.77863543]
[1769304488168,1.987,2956.5,2955.5,0.77863543]
[1769304488468,4.02689942,2956.4,2955.5,0.77863543]
[1769304488671,1.987,2956.5,2955.5,0.77863543]
[1769304488869,4.02690056,2956.4,2955.5,0.77863543]
[1769304489180,1.987,2956.5,2955.5,0.77863543]
[1769304489466,4.02687776,2956.4,2955.5,0.77863543]
[1769304489769,4.02672514,2956.3,2955.2,0.92681267]
[1769304489964,2.76563543,2956.5,2955.2,0.92681267]
[1769304490169,4.02692648,2956.4,2955.2,0.92681267]
[1769304490370,4.02692648,2956.3,2955.2,0.92681267]
[1769304490570,2.76563543,2956.5,2955.2,0.92681267]
[1769304490770,4.02701953,2956.4,2955.2,0.92681267]
[1769304490970,4.02701953,2956.3,2955.2,0.92681267]
[1769304491269,2.76563543,2956.5,2955.2,0.92681267]
[1769304491469,4.02708302,2956.4,2955.0,0.94809543]
[1769304491670,4.02708302,2956.3,2955.0,0.94809543]
[1769304491874,2.90909676,2956.5,2955.0,0.94809543]
[1769304492067,0.77863543,2956.3,2955.0,0.94809543]
[1769304492973,0.91539315,2956.3,2955.0,0.16946]
[1769304493168,0.13675772,2956.2,2955.0,0.16946]
[1769304496675,4.02701557,2956.1,2954.8,0.91781318]
[1769304496878,0.13675772,2956.2,2954.8,0.91781318]
[1769304497171,4.02704665,2956.1,2954.8,0.91781318]
[1769304497476,0.13675772,2956.2,2954.8,0.91781318]
[1769304497678,4.02698093,2956.1,2954.8,0.91781318]
[1769304497974,0.13675772,2956.2,2954.8,0.91781318]
[1769304498176,4.02696082,2956.1,2954.8,0.91781318]
[1769304498377,0.13675772,2956.2,2954.8,0.91781318]
[1769304498678,4.0269758,2956.1,2954.8,0.91781318]
[1769304498876,0.13675772,2956.2,2954.8,0.91781318]
[1769304499176,4.02697656,2956.1,2954.8,0.91781318]
[1769304499378,0.13675772,2956.2,2954.8,0.91781318]
[1769304499577,4.02713925,2956.1,2954.8,0.91781318]
[1769304499777,0.13675772,2956.2,2954.8,0.91781318]
[1769304499979,4.02713948,2956.1,2954.8,0.91781318]
[1769304500178,0.13675772,2956.2,2954.8,0.91781318]
[1769304500378,4.02713977,2956.1,2954.8,0.91781318]
[1769304500582,0.13675772,2956.2,2954.8,0.91781318]
[1769304500781,4.02713861,2956.1,2954.8,0.91781318]
[1769304500974,0.13675772,2956.2,2954.8,0.91781318]
[1769304501174,4.02711257,2956.1,2954.8,0.91781318]
[1769304501381,0.13675772,2956.2,2954.8,0.91781318]
[1769304501581,4.02708683,2956.1,2954.8,0.91781318]
[1769304501879,0.13675772,2956.2,2954.8,0.91781318]
[1769304502072,4.02708818,2956.1,2955.0,0.77863543]
[1769304502368,0.13675772,2956.2,2955.0,0.77863543]
[1769304502572,4.02704372,2956.1,2955.0,0.77863543]
[1769304502772,0.13675772,2956.2,2955.0,0.77863543]
[1769304503072,4.02704424,2956.1,2955.0,0.77863543]
[1769304503272,0.13675772,2956.2,2955.0,0.77863543]
[1769304503470,4.02703684,2956.1,2955.0,0.77863543]
[1769304503780,0.13675772,2956.2,2955.0,0.77863543]
[1769304503982,4.02703721,2956.1,2955.0,0.77863543]
[1769304504181,0.13675772,2956.2,2955.0,0.77863543]
[1769304504484,4.02704564,2956.1,2955.0,0.77863543]
[1769304504680,0.13675772,2956.2,2955.0,0.77863543]
[1769304504881,4.02704564,2956.1,2954.8,0.13917775]
[1769304505081,0.13675772,2956.2,2954.8,0.13917775]
[1769304505285,4.02704486,2956.1,2954.8,0.13917775]
[1769304505472,0.13675772,2956.2,2954.8,0.13917775]
[1769304505679,4.02704514,2956.1,2954.8,0.13917775]
[1769304505878,0.13675772,2956.2,2954.8,0.13917775]
[1769304506177,4.02704471,2956.1,2954.8,0.13917775]
[1769304506379,0.13675772,2956.2,2954.8,0.13917775]
[1769304506578,4.02703944,2956.1,2954.8,0.13917775]
[1769304506883,0.13675772,2956.2,2954.8,0.13917775]
[1769304507089,4.02703721,2956.1,2954.8,0.13917775]
[1769304507282,0.13675772,2956.2,2954.8,0.13917775]
[1769304507582,1.987,2956.5,2954.8,0.13917775]
[1769304507883,4.02702167,2956.4,2954.8,0.13917775]
[1769304508079,4.02702167,2956.3,2954.8,0.13917775]
[1769304508280,4.02702167,2956.2,2954.8,0.13917775]
[1769304508479,1.987,2956.5,2954.8,0.13917775]
[1769304508679,4.02699806,2956.4,2954.8,0.13917775]
[1769304508883,4.02699806,2956.3,2954.8,0.13917775]
[1769304509074,4.02699806,2956.2,2954.8,0.13917775]
[1769304509279,1.987,2956.5,2954.8,0.13917775]
[1769304509479,4.02697603,2956.4,2954.8,0.13917775]
[1769304509681,4.02697603,2956.3,2954.8,0.13917775]
[1769304509883,4.02697603,2956.2,2954.8,0.13917775]
[1769304510087,1.987,2956.5,2954.8,0.13917775]
[1769304510385,4.02700837,2956.4,2954.8,0.13917775]
[1769304510686,4.02700837,2956.3,2954.8,0.13917775]
[1769304510886,4.02700837,2956.2,2954.8,0.13917775]
[1769304511080,2.12375772,2956.5,2954.8,0.13917775]
[1769304511281,4.02727539,2956.4,2954.8,0.13917775]
[1769304511480,4.02727539,2956.3,2954.8,0.13917775]
[1769304511693,4.02727539,2956.2,2954.8,0.13917775]
[1769304511988,2.12375772,2956.5,2954.8,0.13917775]
[1769304512192,4.02823705,2956.4,2954.8,0.13917775]
[1769304512388,4.02823705,2956.3,2954.8,0.13917775]
[1769304512685,4.02823705,2956.2,2954.8,0.13917775]
[1769304512886,2.12375772,2956.5,2954.8,0.13917775]
[1769304513086,4.02823152,2956.4,2954.8,0.13917775]
[1769304513286,4.02823152,2956.3,2954.8,0.13917775]
[1769304513488,4.02823152,2956.2,2954.8,0.13917775]
[1769304513691,2.12375772,2956.5,2954.8,0.13917775]
[1769304513890,4.02821596,2956.4,2954.8,0.13917775]
[1769304514188,4.02821596,2956.3,2954.8,0.13917775]
[1769304514382,4.02821596,2956.2,2954.8,0.13917775]
[1769304514582,2.12375772,2956.5,2954.8,0.13917775]
[1769304514787,4.02822672,2956.4,2954.8,0.13917775]
[1769304515081,4.02822672,2956.3,2954.8,0.13917775]
[1769304515279,4.02822672,2956.2,2954.8,0.13917775]
[1769304515578,4.02822672,2956.1,2954.8,0.13917775]
[1769304515783,2.12375772,2956.5,2954.8,0.13917775]
[1769304515979,4.02839242,2956.4,2954.8,0.13917775]
[1769304516182,4.02839242,2956.3,2954.8,0.13917775]
[1769304516388,4.02839242,2956.2,2954.8,0.13917775]
[1769304516589,4.02839242,2956.1,2954.8,0.13917775]
[1769304516790,5.51175772,2956.5,2954.8,0.13917775]
[1769304517092,4.02858856,2956.4,2954.8,0.13917775]
[1769304517291,4.02858856,2956.3,2954.8,0.13917775]
[1769304517491,4.02858856,2956.2,2954.8,0.13917775]
[1769304517686,4.02858856,2956.1,2954.8,0.13917775]
[1769304517893,5.51175772,2956.5,2954.8,0.13917775]
[1769304518092,4.02882307,2956.4,2954.8,0.13917775]
[1769304518292,4.02882307,2956.3,2954.8,0.13917775]
[1769304518494,4.02882307,2956.2,2954.8,0.13917775]
[1769304518793,4.02882307,2956.1,2954.8,0.13917775]
[1769304518986,5.51175772,2956.5,2954.8,0.13917775]
[1769304519187,4.02908582,2956.4,2954.8,0.13917775]
[1769304519396,4.02908582,2956.3,2954.8,0.13917775]
[1769304519596,4.02908582,2956.2,2954.8,0.13917775]
[1769304519889,4.02908582,2956.1,2954.8,0.13917775]
[1769304520095,5.51175772,2956.5,2954.8,0.13917775]
[1769304520287,4.02959254,2956.4,2954.8,0.13917775]
[1769304520594,4.02959254,2956.3,2954.8,0.13917775]
[1769304520796,4.02959254,2956.2,2954.8,0.13917775]
[1769304520994,4.02959254,2956.1,2954.8,0.13917775]
[1769304521292,5.51175772,2956.5,2954.8,0.13917775]
[1769304521490,4.02977594,2956.4,2954.8,0.13917775]
[1769304521686,6.01677594,2956.3,2954.8,0.13917775]
[1769304521889,4.02977594,2956.2,2954.8,0.13917775]
[1769304522298,4.02977594,2956.1,2954.8,0.13917775]
[1769304522495,2.155,2956.3,2954.8,0.13917775]
[1769304522697,4.02994242,2956.2,2954.8,0.13917775]
[1769304522890,4.02994242,2956.1,2954.8,0.13917775]
[1769304523093,2.155,2956.3,2954.8,0.13917775]
[1769304523294,4.03015543,2956.2,2954.8,0.13917775]
[1769304523494,4.03015543,2956.1,2954.8,0.13917775]
[1769304523695,2.155,2956.3,2954.8,0.13917775]
[1769304523896,4.03015695,2956.2,2954.8,0.13917775]
[1769304524096,4.03015695,2956.1,2954.8,0.13917775]
[1769304524397,2.155,2956.3,2954.8,0.13917775]
[1769304524596,4.03037174,2956.2,2954.8,0.13917775]
[1769304524895,4.03037174,2956.1,2954.8,0.13917775]
[1769304525096,2.155,2956.3,2954.8,0.13917775]
[1769304525402,4.03071204,2956.2,2954.8,0.13917775]
[1769304525598,4.03071204,2956.1,2954.8,0.13917775]
[1769304525895,2.155,2956.3,2954.8,0.13917775]
[1769304526095,4.03071204,2956.2,2954.8,0.13917775]
[1769304526293,4.03071204,2956.1,2954.8,0.13917775]
[1769304526493,2.155,2956.3,2954.8,0.13917775]
[1769304526699,4.03132723,2956.2,2954.8,0.13917775]
[1769304526899,4.03132723,2956.1,2954.8,0.13917775]
[1769304527101,2.155,2956.3,2954.8,0.13917775]
[1769304527398,4.03138725,2956.2,2954.8,0.13917775]
[1769304527594,4.03138725,2956.1,2954.8,0.13917775]
[1769304527788,2.155,2956.3,2954.8,0.13917775]
[1769304527994,4.03138789,2956.2,2954.8,0.13917775]
[1769304528192,4.03138789,2956.1,2954.8,0.13917775]
[1769304528389,1.987,2956.4,2954.8,0.13917775]
[1769304528588,4.0314611,2956.3,2954.8,0.13917775]
[1769304528794,4.0314611,2956.2,2954.8,0.13917775]
[1769304528994,4.0314611,2956.1,2954.8,0.13917775]
[1769304529189,1.987,2956.4,2954.8,0.13917775]
[1769304529390,4.03147663,2956.3,2954.8,0.13917775]
[1769304529593,4.03147663,2956.2,2954.8,0.13917775]
[1769304529798,4.03147663,2956.1,2954.8,0.13917775]
[1769304529995,1.987,2956.4,2954.8,0.13917775]
[1769304530198,4.03149279,2956.3,2954.8,0.13917775]
[1769304530397,4.03149279,2956.2,2954.8,0.13917775]
[1769304530599,4.03149279,2956.1,2954.8,0.13917775]
[1769304530804,1.987,2956.4,2954.8,0.13917775]
[1769304531001,4.03149222,2956.3,2954.8,0.13917775]
[1769304531304,4.03149222,2956.2,2954.8,0.13917775]
[1769304531504,4.03149222,2956.1,2954.8,0.13917775]
[1769304531702,1.987,2956.4,2954.8,0.13917775]
[1769304531895,4.03150633,2956.3,2955.0,0.14622654]
[1769304532206,4.03150633,2956.2,2955.0,0.14622654]
[1769304532504,4.03150633,2956.1,2955.0,0.14622654]
[1769304532699,2.15637,2956.6,2955.0,0.14622654]
[1769304532895,4.03151641,2956.5,2955.0,0.14622654]
[1769304533095,2.15637,2956.6,2955.0,0.14622654]
[1769304533096,4.03151641,2956.4,2955.0,0.14622654]
[1769304533298,4.03151641,2956.3,2955.0,0.14622654]
[1769304533500,4.03151641,2956.2,2955.0,0.14622654]
[1769304533704,2.15637,2956.6,2955.0,0.14622654]
[1769304533895,4.03122966,2956.5,2955.0,0.14622654]
[1769304534198,4.03122966,2956.4,2955.0,0.14622654]
[1769304534399,4.03122966,2956.3,2955.0,0.14622654]
[1769304534598,4.03122966,2956.2,2955.0,0.14622654]
[1769304534793,0.16937,2956.6,2955.0,0.14622654]
[1769304535002,4.03096378,2956.5,2955.0,0.14622654]
[1769304535200,4.03096378,2956.4,2955.0,0.14622654]
[1769304535400,4.03096378,2956.3,2955.0,0.14622654]
[1769304535602,4.03096378,2956.2,2955.0,0.14622654]
[1769304535905,2.15637,2956.6,2955.0,0.14622654]
[1769304536100,4.03074024,2956.5,2955.0,0.14622654]
[1769304536297,4.03074024,2956.4,2955.0,0.14622654]
[1769304536493,4.03074024,2956.3,2955.0,0.14622654]
[1769304536698,4.03074024,2956.2,2955.0,0.14622654]
[1769304536899,2.15637,2956.6,2955.0,0.14622654]
[1769304537100,4.03056114,2956.5,2955.0,0.14622654]
[1769304537300,4.03056114,2956.4,2955.0,0.14622654]
[1769304537499,4.03056114,2956.3,2955.0,0.14622654]
[1769304537699,4.03056114,2956.2,2955.0,0.14622654]
[1769304537904,2.15637,2956.6,2955.0,0.14622654]
[1769304538104,4.03044392,2956.5,2955.0,0.14622654]
[1769304538306,4.03044392,2956.4,2955.0,0.14622654]
[1769304538506,4.03044392,2956.3,2955.0,0.14622654]
[1769304538707,4.03044392,2956.2,2955.0,0.14622654]
[1769304539009,2.15637,2956.6,2955.0,0.14622654]
[1769304539201,4.03031909,2956.5,2955.0,0.14622654]
[1769304539401,4.03031909,2956.4,2955.0,0.14622654]
[1769304539607,4.03031909,2956.3,2955.0,0.14622654]
[1769304539810,4.03031909,2956.2,2955.0,0.14622654]
[1769304540010,2.15637,2956.6,2955.0,0.14622654]
[1769304540209,4.03029035,2956.5,2955.0,0.14622654]
[1769304540508,4.03029035,2956.4,2955.0,0.14622654]
[1769304540703,4.03029035,2956.3,2955.0,0.14622654]
[1769304540903,2.15637,2956.6,2955.0,0.14622654]
[1769304540904,4.03029035,2956.2,2955.0,0.14622654]
[1769304541102,2.15637,2956.6,2955.0,0.14622654]
[1769304541302,4.03026442,2956.5,2955.0,0.14622654]
[1769304541503,4.03026442,2956.4,2955.0,0.14622654]
[1769304541803,4.03026442,2956.3,2955.0,0.14622654]
[1769304542004,4.03026442,2956.2,2955.0,0.14622654]
[1769304542302,2.15637,2956.6,2955.0,0.14622654]
[1769304542500,4.02189944,2956.5,2955.0,0.14622654]
[1769304542699,4.02189944,2956.4,2955.1,0.13881945]
[1769304543011,4.02189944,2956.3,2955.1,0.13881945]
[1769304543309,1.987,2956.7,2955.1,0.13881945]
[1769304543509,4.02149401,2956.6,2955.1,0.13881945]
[1769304543710,4.02149401,2956.5,2955.1,0.13881945]
[1769304544009,4.02149401,2956.4,2955.1,0.13881945]
[1769304544213,1.987,2956.7,2955.1,0.13881945]
[1769304544510,4.02096789,2956.6,2955.1,0.13881945]
[1769304544710,4.02096789,2956.5,2955.1,0.13881945]
[1769304545008,4.02096789,2956.4,2955.1,0.13881945]
[1769304545205,1.987,2956.7,2955.1,0.13881945]
[1769304545405,4.02056645,2956.6,2955.1,0.13881945]
[1769304545606,4.02056645,2956.5,2955.1,0.13881945]
[1769304545806,4.02056645,2956.4,2955.1,0.13881945]
[1769304546003,1.987,2956.7,2955.1,0.13881945]
[1769304546216,4.02053882,2956.6,2955.1,0.13881945]
[1769304546409,4.02053882,2956.5,2955.1,0.13881945]
[1769304546712,4.02053882,2956.4,2955.1,0.13881945]
[1769304546912,1.987,2956.7,2955.1,0.13881945]
[1769304547102,4.02033349,2956.6,2955.1,0.13881945]
[1769304547305,4.02033349,2956.5,2955.1,0.13881945]
[1769304547502,4.02033349,2956.4,2955.1,0.13881945]
[1769304547702,1.987,2956.7,2955.1,0.13881945]
[1769304547914,4.02011875,2956.6,2955.1,0.13881945]
[1769304548212,4.02011875,2956.5,2955.1,0.13881945]
[1769304548407,4.02011875,2956.4,2955.1,0.13881945]
[1769304548613,1.987,2956.7,2955.1,0.13881945]
[1769304548813,4.01997877,2956.6,2955.1,0.13881945]
[1769304549005,4.01997877,2956.5,2955.1,0.13881945]
[1769304549206,4.01997877,2956.4,2955.1,0.13881945]
[1769304549406,4.15879766,2956.3,2954.4,0.1423971]